fUST/lending_fUST_20240518
["ID","MTS","AMOUNT","RATE_DAILY","PERIOD"]
[327340188,1715998238763,-859.45528696,0.00015424,2]
[327340190,1715998238772,-2809.38088094,0.00015424,2]
[327340192,1715998238781,-301.95911464,0.00015425,2]
[327340194,1715998238790,-4724.04065317,0.00015425,2]
[327340196,1715998238799,-176.39287617,0.00015756,2]
[327340198,1715998238808,-7967.64444353,0.00016,2]
[327340200,1715998238817,-176.39287617,0.00016184,2]
[327340202,1715998238828,-474.9,0.00016322,3]
[327340204,1715998238838,-474.9,0.00016322,2]
[327340206,1715998238847,-19258.16741431,0.00016338,2]
[327340224,1715998238999,-2000.0,0.00016338,2]
[327340226,1715998239008,-2400.26192892,0.00016436,2]
[327340228,1715998239018,-5364.94294758,0.00016438,3]
[327340230,1715998239028,-497.01118682,0.00016438,2]
[327340232,1715998239038,-507.21500038,0.00016438,2]
[327340234,1715998239048,-504.91683126,0.00016438,2]
[327340236,1715998239057,-500.0,0.00016438,2]
[327340238,1715998239067,-500.0,0.00016438,2]
[327340239,1715998239077,-500.0,0.00016438,2]
[327340241,1715998239087,-500.0,0.00016438,2]
[327340243,1715998239098,-500.0,0.00016438,2]
[327340245,1715998239107,-500.0,0.00016438,2]
[327340247,1715998239116,-500.0,0.00016438,2]
[327340249,1715998239126,-500.0,0.00016438,2]
[327340251,1715998239135,-150.15,0.00016438,2]
[327340253,1715998239145,-500.0,0.00016438,2]
[327340255,1715998239156,-500.0,0.00016438,2]
[327340257,1715998239166,-500.0,0.00016438,2]
[327340259,1715998239176,-500.0,0.00016438,2]
[327340261,1715998239186,-504.21252514,0.00016438,2]
[327340263,1715998239196,-503.53087562,0.00016438,2]
[327340265,1715998239206,-500.90485719,0.00016438,2]
[327340267,1715998239216,-506.52527879,0.00016438,2]
[327340269,1715998239226,-506.20929975,0.00016438,2]
[327340271,1715998239236,-500.0,0.00016438,2]
[327340273,1715998239246,-506.91188355,0.00016438,2]
[327340275,1715998239256,-505.80038547,0.00016438,2]
[327340277,1715998239265,-500.0,0.00016438,2]
[327340279,1715998239275,-500.0,0.00016438,2]
[327340281,1715998239284,-500.0,0.00016438,2]
[327340283,1715998239294,-500.0,0.00016438,2]
[327340285,1715998239303,-500.0,0.00016438,2]
[327340287,1715998239313,-500.0,0.00016438,2]
[327340289,1715998239324,-500.0,0.00016438,2]
[327340291,1715998239334,-503.15830673,0.00016438,2]
[327340292,1715998239343,-500.0,0.00016438,2]
[327340293,1715998239354,-502.10553083,0.00016438,2]
[327340294,1715998239363,-500.0,0.00016438,2]
[327340295,1715998239373,-507.28998199,0.00016438,2]
[327340296,1715998239384,-500.0,0.00016438,2]
[327340297,1715998239393,-500.0,0.00016438,2]
[327340298,1715998239403,-504.19262495,0.00016438,2]
[327340299,1715998239413,-500.0,0.00016438,2]
[327340300,1715998239424,-506.42159147,0.00016438,2]
[327340301,1715998239434,-500.0,0.00016438,2]
[327340302,1715998239444,-514.57669617,0.00016438,2]
[327340303,1715998239454,-500.0,0.00016438,2]
[327340304,1715998239464,-500.0,0.00016438,2]
[327340305,1715998239474,-501.87634161,0.00016438,2]
[327340306,1715998239483,-185.84017691,0.00016438,2]
[327340307,1715998239496,-158.80837085,0.00016438,2]
[327340308,1715998239508,-507.76393073,0.00016438,2]
[327340309,1715998239518,-500.72470488,0.00016438,2]
[327340311,1715998239528,-506.60546792,0.00016438,2]
[327340313,1715998239539,-500.0,0.00016438,2]
[327340315,1715998239549,-502.89071705,0.00016438,2]
[327340317,1715998239558,-504.91874709,0.00016438,2]
[327340319,1715998239568,-501.32013921,0.00016438,2]
[327340321,1715998239580,-502.21349185,0.00016438,2]
[327340323,1715998239589,-501.93659509,0.00016438,2]
[327340325,1715998239599,-504.77630118,0.00016438,2]
[327340327,1715998239608,-505.65154867,0.00016438,2]
[327340329,1715998239618,-522.08954787,0.00016438,2]
[327340331,1715998239627,-519.14313656,0.00016438,2]
[327340333,1715998239636,-502.43960808,0.00016438,2]
[327340335,1715998239646,-160.13523699,0.00016438,2]
[327340337,1715998239655,-500.77119324,0.00016438,2]
[327340339,1715998239664,-508.7109615,0.00016438,2]
[327340341,1715998239675,-503.11489218,0.00016438,2]
[327340343,1715998239684,-207.31789753,0.00016438,2]
[327340345,1715998239694,-500.21504838,0.00016438,2]
[327340347,1715998239704,-501.87578921,0.00016438,2]
[327340349,1715998239713,-500.60321915,0.00016438,2]
[327340351,1715998239723,-501.0762932,0.00016438,2]
[327340353,1715998239732,-507.61820977,0.00016438,2]
[327340355,1715998239742,-514.7139242,0.00016438,2]
[327340357,1715998239751,-505.06299649,0.00016438,2]
[327340359,1715998239761,-188.12688385,0.00016438,2]
[327340361,1715998239770,-507.09461867,0.00016438,2]
[327340363,1715998239779,-426.45753845,0.00016438,2]
[327340365,1715998239789,-503.41110516,0.00016438,2]
[327340367,1715998239800,-500.28783267,0.00016438,2]
[327340369,1715998239811,-648.32191241,0.00016438,2]
[327340371,1715998239820,-514.64243649,0.00016438,2]
[327340373,1715998239830,-504.00958737,0.00016438,2]
[327340375,1715998239840,-500.95129566,0.00016438,2]
[327340377,1715998239850,-501.38530356,0.00016438,2]
[327340379,1715998239860,-608.56001064,0.00016438,2]
[327340381,1715998239869,-501.72219746,0.00016438,2]
[327340383,1715998239879,-623.82920468,0.00016438,2]
[327340385,1715998239888,-500.0,0.00016438,2]
[327340387,1715998239898,-503.50385804,0.00016438,2]
[327340389,1715998239908,-500.0,0.00016438,2]
[327340391,1715998239917,-512.76382057,0.00016438,2]
[327340393,1715998239927,-503.49732163,0.00016438,2]
[327340395,1715998239937,-502.05997126,0.00016438,2]
[327340397,1715998239946,-501.6171212,0.00016438,2]
[327340399,1715998239956,-497.78888575,0.00016438,2]
[327340402,1715998239966,-502.21384019,0.00016438,2]
[327340404,1715998239975,-507.39045539,0.00016438,2]
[327340406,1715998239986,-502.17281274,0.00016438,2]
[327340407,1715998239996,-502.14392903,0.00016438,2]
[327340409,1715998240005,-513.2078559,0.00016438,2]
[327340411,1715998240015,-500.0,0.00016438,2]
[327340413,1715998240024,-505.15356841,0.00016438,2]
[327340415,1715998240034,-500.0,0.00016438,2]
[327340417,1715998240043,-507.7976675,0.00016438,2]
[327340419,1715998240053,-500.0,0.00016438,2]
[327340421,1715998240062,-500.0,0.00016438,2]
[327340424,1715998240072,-500.0,0.00016438,2]
[327340427,1715998240082,-500.0,0.00016438,2]
[327340430,1715998240091,-500.0,0.00016438,2]
[327340433,1715998240102,-527.05136394,0.00016438,2]
[327340436,1715998240111,-501.89116612,0.00016438,2]
[327340439,1715998240120,-500.97931386,0.00016438,2]
[327340442,1715998240130,-504.02582672,0.00016438,2]
[327340444,1715998240140,-514.71251152,0.00016438,2]
[327340447,1715998240149,-505.46397718,0.00016438,2]
[327340450,1715998240158,-502.10785354,0.00016438,2]
[327340453,1715998240167,-501.81856116,0.00016438,2]
[327340456,1715998240177,-503.31528424,0.00016438,2]
[327340459,1715998240186,-500.0,0.00016438,2]
[327340462,1715998240196,-583.88,0.00016438,2]
[327340465,1715998240205,-501.99970545,0.00016438,2]
[327340468,1715998240215,-583.88,0.00016438,2]
[327340471,1715998240224,-583.88,0.00016438,2]
[327340474,1715998240234,-583.88,0.00016438,2]
[327340477,1715998240244,-583.88,0.00016438,2]
[327340480,1715998240254,-583.88,0.00016438,2]
[327340483,1715998240263,-583.88,0.00016438,2]
[327340486,1715998240273,-583.88,0.00016438,2]
[327340489,1715998240283,-501.6096035,0.00016438,2]
[327340492,1715998240292,-502.51004455,0.00016438,2]
[327340495,1715998240302,-501.86008471,0.00016438,2]
[327340498,1715998240312,-515.3786428,0.00016438,2]
[327340501,1715998240322,-504.70226746,0.00016438,2]
[327340504,1715998240332,-500.0,0.00016438,2]
[327340507,1715998240344,-503.66437255,0.00016438,2]
[327340510,1715998240354,-379.79887098,0.00016438,2]
[327340513,1715998240363,-4077.77,0.00016438,2]
[327340516,1715998240372,-506.6435255,0.00016438,2]
[327340519,1715998240382,-2287.36,0.00016438,2]
[327340522,1715998240391,-501.15607277,0.00016438,2]
[327340525,1715998240401,-501.79008016,0.00016438,2]
[327340528,1715998240410,-505.27625253,0.00016438,2]
[327340531,1715998240420,-502.40465758,0.00016438,2]
[327340534,1715998240429,-24418.93,0.00016438,2]
[327340537,1715998240439,-512.40213468,0.00016438,2]
[327340540,1715998240448,-509.02999421,0.00016438,2]
[327340543,1715998240458,-504.26717806,0.00016438,2]
[327340546,1715998240467,-500.0,0.00016438,2]
[327340548,1715998240477,-506.23635785,0.00016438,2]
[327340552,1715998240486,-500.0,0.00016438,2]
[327340555,1715998240496,-503.90597654,0.00016438,2]
[327340558,1715998240510,-505.9033601,0.00016438,2]
[327340561,1715998240520,-3516.61,0.00016438,2]
[327340563,1715998240529,-500.0,0.00016438,2]
[327340566,1715998240540,-501.953761,0.00016438,2]
[327340569,1715998240550,-500.0,0.00016438,2]
[327340572,1715998240560,-500.0,0.00016438,2]
[327340575,1715998240569,-500.0,0.00016438,2]
[327340578,1715998240580,-506.46880664,0.00016438,2]
[327340581,1715998240591,-500.0,0.00016438,2]
[327340584,1715998240601,-504.35878576,0.00016438,2]
[327340587,1715998240610,-504.62699176,0.00016438,2]
[327340590,1715998240620,-503.09859902,0.00016438,2]
[327340593,1715998240629,-502.03716847,0.00016438,2]
[327340595,1715998240638,-508.36847,0.00016438,2]
[327340599,1715998240648,-508.08832358,0.00016438,2]
[327340601,1715998240657,-500.0,0.00016438,2]
[327340603,1715998240666,-505.70912941,0.00016438,2]
[327340606,1715998240675,-500.0,0.00016438,2]
[327340609,1715998240684,-588.8519439,0.00016438,2]
[327340612,1715998240694,-5417.43,0.00016438,2]
[327340615,1715998240703,-1213.37,0.00016438,2]
[327340617,1715998240713,-501.20631385,0.00016438,2]
[327340620,1715998240722,-500.0,0.00016438,2]
[327340623,1715998240731,-502.7989633,0.00016438,2]
[327340626,1715998240740,-511.68,0.00016438,2]
[327340629,1715998240750,-500.0,0.00016438,2]
[327340632,1715998240760,-504.47299497,0.00016438,2]
[327340635,1715998240770,-500.0,0.00016438,2]
[327340638,1715998240779,-810.34,0.00016438,2]
[327340641,1715998240788,-500.0,0.00016438,2]
[327340644,1715998240797,-501.39803878,0.00016438,2]
[327340647,1715998240807,-505.00993559,0.00016438,2]
[327340650,1715998240816,-507.01340243,0.00016438,2]
[327340653,1715998240826,-506.66607249,0.00016438,2]
[327340656,1715998240835,-500.0,0.00016438,2]
[327340658,1715998240844,-500.81510458,0.00016438,2]
[327340660,1715998240854,-500.0,0.00016438,2]
[327340662,1715998240863,-500.0,0.00016438,2]
[327340664,1715998240872,-500.0,0.00016438,2]
[327340667,1715998240882,-653.87,0.00016438,2]
[327340670,1715998240891,-500.0,0.00016438,2]
[327340673,1715998240901,-500.0,0.00016438,2]
[327340676,1715998240911,-500.0,0.00016438,2]
[327340679,1715998240920,-610.67,0.00016438,2]
[327340682,1715998240930,-500.0,0.00016438,2]
[327340685,1715998240939,-500.0,0.00016438,2]
[327340688,1715998240948,-500.0,0.00016438,2]
[327340691,1715998240957,-5278.11,0.00016438,2]
[327340694,1715998240966,-500.0,0.00016438,2]
[327340696,1715998240975,-506.53639279,0.00016438,2]
[327340699,1715998240984,-500.0,0.00016438,2]
[327340702,1715998240993,-511.70366749,0.00016438,2]
[327340704,1715998241002,-500.0,0.00016438,2]
[327340707,1715998241012,-501.61604106,0.00016438,2]
[327340709,1715998241021,-500.0,0.00016438,2]
[327340711,1715998241029,-500.0,0.00016438,2]
[327340714,1715998241038,-1074.9,0.00016438,2]
[327340717,1715998241047,-500.0,0.00016438,2]
[327340720,1715998241058,-510.5525724,0.00016438,2]
[327340723,1715998241067,-500.0,0.00016438,2]
[327340725,1715998241076,-500.0,0.00016438,2]
[327340728,1715998241085,-500.0,0.00016438,2]
[327340731,1715998241094,-500.0,0.00016438,2]
[327340734,1715998241103,-414.87102176,0.00016438,2]
[327340736,1715998241112,-500.0,0.00016438,2]
[327340739,1715998241121,-500.0,0.00016438,2]
[327340742,1715998241132,-500.0,0.00016438,2]
[327340745,1715998241141,-2566.13,0.00016438,2]
[327340748,1715998241150,-508.86724581,0.00016438,2]
[327340750,1715998241159,-500.0,0.00016438,2]
[327340753,1715998241169,-500.0,0.00016438,2]
[327340756,1715998241178,-500.0,0.00016438,2]
[327340759,1715998241187,-500.0,0.00016438,2]
[327340761,1715998241196,-3337.33,0.00016438,2]
[327340764,1715998241205,-500.0,0.00016438,2]
[327340767,1715998241215,-500.0,0.00016438,2]
[327340770,1715998241224,-500.0,0.00016444,2]
[327340772,1715998241233,-12703.0,0.000165,2]
[327340775,1715998241242,-239.60631677,0.000165,2]
[327340778,1715998241252,-474.9,0.00016582,2]
[327340781,1715998241261,-176.39287617,0.00016612,2]
[327340784,1715998241272,-500.0,0.00016711,2]
[327340787,1715998241281,-500.0,0.00016711,2]
[327340789,1715998241290,-583.88,0.00016711,2]
[327340792,1715998241299,-58.84711626,0.00016711,2]
[327340850,1715998241895,-150.0,0.00016322,3]
[327340852,1715998241904,-81.28621011,0.00016438,2]
[327341040,1715998243868,-423.0313724,0.00016438,2]
[327342580,1715998301545,500.0,0.00016438,4]
[327342581,1715998731043,500.77119324,0.00016438,5]
[327342606,1715999222362,500.0,0.00016438,4]
[327342607,1715999231161,-211.29,0.00010959,2]
[327342608,1715999231181,-189.5809831,0.00014843,2]
[327342609,1715999231202,-170.08547036,0.000149,2]
[327342610,1715999238084,-34.19260513,0.000149,2]
[327342611,1715999238104,-1087.59908362,0.000149,2]
[327342612,1715999238126,-308.103743,0.000149,2]
[327342613,1715999238147,-1970.79469911,0.00014943,2]
[327342614,1715999365195,-5006.54772753,0.00014296,2]
[327342615,1715999366126,-882.74613087,0.00014296,2]
[327342616,1715999366151,-356.389399,0.00014464,2]
[327342654,1715999433055,-951.64919815,0.000149,2]
[327342656,1715999433065,-370.23304957,0.00014999,2]
[327342658,1715999433076,-477.11235945,0.00014999,2]
[327342660,1715999433086,-942.53705457,0.00015,2]
[327342662,1715999433095,-7100.90113281,0.00015,2]
[327342664,1715999433105,-43654.32433774,0.00015,2]
[327342666,1715999433116,-635.79487883,0.00015,2]
[327342722,1715999439298,-35709.88078343,0.00015,2]
[327342724,1715999439309,-1687.5089171,0.00015,2]
[327342726,1715999439319,-2107.25657902,0.00015,2]
[327342728,1715999439330,-1149.07076386,0.00015,2]
[327342730,1715999439341,-2795.92824354,0.00015,2]
[327342732,1715999439351,-189.0391359,0.00015,2]
[327342734,1715999439361,-2400.65057528,0.00015,2]
[327342736,1715999439371,-308.10374298,0.0001526,2]
[327342738,1715999439382,-308.10374298,0.00015619,2]
[327342740,1715999439392,-308.10374298,0.00015979,2]
[327342742,1715999439403,-7967.64444353,0.00016,2]
[327342744,1715999439414,-4724.04065317,0.00016233,2]
[327342746,1715999439423,-301.95911464,0.00016233,2]
[327342747,1715999439434,-859.45528696,0.00016233,2]
[327342749,1715999439444,-153.0,0.000163,2]
[327342751,1715999439454,-153.0,0.000163,2]
[327342753,1715999439464,-153.0,0.000163,2]
[327342755,1715999439475,-474.9,0.0001632,3]
[327342772,1715999439485,-474.9,0.0001632,2]
[327342774,1715999439646,-302.89690554,0.00016328,2]
[327342776,1715999439657,-156.78052077,0.00016328,2]
[327342778,1715999439668,-245.13527441,0.00016328,2]
[327342780,1715999439678,-155.08797204,0.00016328,2]
[327342782,1715999439689,-308.10374298,0.00016338,2]
[327342784,1715999439699,-37784.71348986,0.00016338,2]
[327342786,1715999439710,-2000.0,0.00016338,2]
[327342788,1715999439720,-955.61945623,0.000164,2]
[327342790,1715999439730,-153.0,0.000164,2]
[327342793,1715999439740,-153.0,0.000164,2]
[327342794,1715999439751,-153.0,0.000164,2]
[327342796,1715999439762,-154.98843811,0.00016433,2]
[327342799,1715999439771,-335.66171947,0.00016433,2]
[327342801,1715999439782,-582.57822486,0.00016434,2]
[327342803,1715999439792,-155.12823009,0.00016435,2]
[327342805,1715999439802,-297.09300051,0.00016435,2]
[327342807,1715999439812,-155.09776591,0.00016435,2]
[327342809,1715999439822,-155.6687836,0.00016435,2]
[327342811,1715999439832,-477.11995465,0.00016435,2]
[327342813,1715999439843,-660.23167755,0.00016435,2]
[327342815,1715999439854,-1371.2207292,0.00016435,2]
[327342817,1715999439864,-154.96083737,0.00016435,2]
[327342819,1715999439874,-10729.88589516,0.00016438,3]
[327342821,1715999439885,-23408.03411016,0.00016438,3]
[327342823,1715999439895,-502.98881318,0.00016438,2]
[327342825,1715999439906,-502.33557891,0.00016438,2]
[327342827,1715999439917,-423.48114422,0.00016438,2]
[327342829,1715999439928,-501.3410394,0.00016438,2]
[327342831,1715999439938,-501.56839334,0.00016438,2]
[327342833,1715999439948,-501.17893466,0.00016438,2]
[327342835,1715999439958,-503.58629594,0.00016438,2]
[327342837,1715999439969,-500.0,0.00016438,2]
[327342839,1715999439979,-502.19025893,0.00016438,2]
[327342841,1715999439989,-502.19920621,0.00016438,2]
[327342843,1715999439999,-501.63514118,0.00016438,2]
[327342845,1715999440010,-501.37380739,0.00016438,2]
[327342847,1715999440020,-501.67118055,0.00016438,2]
[327342849,1715999440031,-500.0,0.00016438,2]
[327342851,1715999440041,-501.8025543,0.00016438,2]
[327342853,1715999440051,-497.09165265,0.00016438,2]
[327342855,1715999440061,-500.0,0.00016438,2]
[327342857,1715999440071,-500.80389508,0.00016438,2]
[327342859,1715999440081,-506.23851799,0.00016438,2]
[327342861,1715999440091,-496.72167351,0.00016438,2]
[327342863,1715999440101,-502.03869105,0.00016438,2]
[327342865,1715999440112,-269.00562539,0.00016438,2]
[327342867,1715999440122,-502.21155139,0.00016438,2]
[327342869,1715999440133,-501.50186471,0.00016438,2]
[327342871,1715999440143,-549.66038859,0.00016438,2]
[327342873,1715999440154,-502.52195074,0.00016438,2]
[327342875,1715999440170,-500.520322,0.00016438,2]
[327342877,1715999440180,-501.25576528,0.00016438,2]
[327342879,1715999440192,-500.0,0.00016438,2]
[327342881,1715999440203,-501.3686807,0.00016438,2]
[327342883,1715999440214,-502.40917785,0.00016438,2]
[327342885,1715999440224,-502.59145835,0.00016438,2]
[327342887,1715999440235,-504.13869779,0.00016438,2]
[327342889,1715999440246,-509.49216685,0.00016438,2]
[327342891,1715999440257,-502.37017628,0.00016438,2]
[327342893,1715999440268,-501.92717773,0.00016438,2]
[327342895,1715999440278,-502.97511639,0.00016438,2]
[327342897,1715999440288,-501.27242285,0.00016438,2]
[327342899,1715999440298,-511.21113972,0.00016438,2]
[327342901,1715999440309,-501.97624276,0.00016438,2]
[327342903,1715999440319,-503.48114508,0.00016438,2]
[327342905,1715999440330,-502.15095282,0.00016438,2]
[327342907,1715999440341,-501.33950526,0.00016438,2]
[327342909,1715999440351,-500.73076359,0.00016438,2]
[327342911,1715999440363,-500.0,0.00016438,2]
[327342913,1715999440373,-510.1134858,0.00016438,2]
[327342915,1715999440383,-501.73127754,0.00016438,2]
[327342917,1715999440394,-503.92729263,0.00016438,2]
[327342920,1715999440405,-507.76393073,0.00016438,2]
[327342923,1715999440417,-502.47710006,0.00016438,2]
[327342926,1715999440428,-500.72470488,0.00016438,2]
[327342929,1715999440437,-501.73833322,0.00016438,2]
[327342932,1715999440448,-502.89071705,0.00016438,2]
[327342935,1715999440458,-504.91874709,0.00016438,2]
[327342938,1715999440468,-501.32013921,0.00016438,2]
[327342941,1715999440478,-504.77630118,0.00016438,2]
[327342944,1715999440488,-503.41415471,0.00016438,2]
[327342947,1715999440499,-519.14313656,0.00016438,2]
[327342950,1715999440509,-500.0,0.00016438,2]
[327342953,1715999440519,-500.0,0.00016438,2]
[327342956,1715999440529,-508.7109615,0.00016438,2]
[327342960,1715999440539,-501.73481911,0.00016438,2]
[327342963,1715999440549,-207.31789753,0.00016438,2]
[327342966,1715999440559,-544.10959379,0.00016438,2]
[327342969,1715999440569,-501.87634161,0.00016438,2]
[327342972,1715999440579,-501.87578921,0.00016438,2]
[327342975,1715999440590,-158.80837085,0.00016438,2]
[327342978,1715999440600,-506.60546792,0.00016438,2]
[327342981,1715999440610,-502.21349185,0.00016438,2]
[327342984,1715999440621,-501.92126739,0.00016438,2]
[327342987,1715999440631,-501.93659509,0.00016438,2]
[327342990,1715999440641,-502.33916104,0.00016438,2]
[327342993,1715999440652,-507.61820977,0.00016438,2]
[327342996,1715999440662,-501.29505758,0.00016438,2]
[327342999,1715999440673,-514.7139242,0.00016438,2]
[327343006,1715999440684,-502.43960808,0.00016438,2]
[327343010,1715999440694,-507.09461867,0.00016438,2]
[327343014,1715999440704,-160.13523699,0.00016438,2]
[327343018,1715999440715,-503.41110516,0.00016438,2]
[327343022,1715999440725,-648.32191241,0.00016438,2]
[327343025,1715999440735,-503.11489218,0.00016438,2]
[327343028,1715999440746,-504.00958737,0.00016438,2]
[327343031,1715999440756,-500.21504838,0.00016438,2]
[327343034,1715999440766,-501.38530356,0.00016438,2]
[327343037,1715999440775,-500.60321915,0.00016438,2]
[327343040,1715999440784,-505.06299649,0.00016438,2]
[327343043,1715999440794,-501.0762932,0.00016438,2]
[327343046,1715999440803,-188.12688385,0.00016438,2]
[327343049,1715999440812,-500.65706453,0.00016438,2]
[327343052,1715999440823,-500.28783267,0.00016438,2]
[327343054,1715999440836,-502.05997126,0.00016438,2]
[327343058,1715999440846,-502.21384019,0.00016438,2]
[327343060,1715999440855,-500.95129566,0.00016438,2]
[327343063,1715999440865,-507.39045539,0.00016438,2]
[327343066,1715999440874,-502.14392903,0.00016438,2]
[327343068,1715999440884,-513.2078559,0.00016438,2]
[327343071,1715999440894,-608.56001064,0.00016438,2]
[327343072,1715999440904,-500.0,0.00016438,2]
[327343075,1715999440915,-500.0,0.00016438,2]
[327343078,1715999440926,-501.72219746,0.00016438,2]
[327343079,1715999440935,-507.7976675,0.00016438,2]
[327343084,1715999440945,-500.0,0.00016438,2]
[327343087,1715999440955,-623.82920468,0.00016438,2]
[327343090,1715999440965,-500.0,0.00016438,2]
[327343093,1715999440974,-500.0,0.00016438,2]
[327343096,1715999440984,-503.50385804,0.00016438,2]
[327343098,1715999440994,-500.0,0.00016438,2]
[327343102,1715999441004,-500.0,0.00016438,2]
[327343104,1715999441014,-500.0,0.00016438,2]
[327343106,1715999441023,-497.78888575,0.00016438,2]
[327343108,1715999441033,-504.02582672,0.00016438,2]
[327343110,1715999441043,-502.17281274,0.00016438,2]
[327343112,1715999441054,-503.49732163,0.00016438,2]
[327343114,1715999441063,-514.71251152,0.00016438,2]
[327343115,1715999441074,-500.0,0.00016438,2]
[327343117,1715999441084,-502.10785354,0.00016438,2]
[327343119,1715999441094,-501.6171212,0.00016438,2]
[327343121,1715999441104,-500.0,0.00016438,2]
[327343123,1715999441114,-503.31528424,0.00016438,2]
[327343125,1715999441124,-384.92214262,0.00016438,2]
[327343128,1715999441134,-501.99970545,0.00016438,2]
[327343131,1715999441143,-501.6096035,0.00016438,2]
[327343134,1715999441153,-500.0,0.00016438,2]
[327343137,1715999441168,-502.51004455,0.00016438,2]
[327343140,1715999441178,-505.15356841,0.00016438,2]
[327343143,1715999441188,-504.70226746,0.00016438,2]
[327343146,1715999441198,-507.16346993,0.00016438,2]
[327343149,1715999441207,-500.0,0.00016438,2]
[327343152,1715999441217,-503.66437255,0.00016438,2]
[327343156,1715999441227,-500.97931386,0.00016438,2]
[327343158,1715999441237,-501.89116612,0.00016438,2]
[327343160,1715999441247,-500.0,0.00016438,2]
[327343161,1715999441257,-569.67921353,0.00016438,2]
[327343164,1715999441267,-501.64098006,0.00016438,2]
[327343165,1715999441277,-502.29421865,0.00016438,2]
[327343168,1715999441287,-500.0,0.00016438,2]
[327343169,1715999441296,-500.0,0.00016438,2]
[327343172,1715999441306,-501.79008016,0.00016438,2]
[327343174,1715999441316,-501.73351118,0.00016438,2]
[327343176,1715999441326,-503.90756558,0.00016438,2]
[327343178,1715999441336,-508.14265655,0.00016438,2]
[327343180,1715999441346,-180.2188718,0.00016438,2]
[327343182,1715999441356,-509.29819655,0.00016438,2]
[327343184,1715999441366,-501.81856116,0.00016438,2]
[327343186,1715999441376,-503.15830673,0.00016438,2]
[327343188,1715999441386,-500.0,0.00016438,2]
[327343190,1715999441396,-500.0,0.00016438,2]
[327343192,1715999441406,-502.10553083,0.00016438,2]
[327343194,1715999441417,-512.40213468,0.00016438,2]
[327343196,1715999441427,-524.32963427,0.00016438,2]
[327343198,1715999441436,-510.16360885,0.00016438,2]
[327343200,1715999441446,-500.0,0.00016438,2]
[327343202,1715999441456,-500.78406,0.00016438,2]
[327343204,1715999441465,-500.64414807,0.00016438,2]
[327343206,1715999441474,-506.90788683,0.00016438,2]
[327343208,1715999441484,-501.86008471,0.00016438,2]
[327343210,1715999441493,-515.3786428,0.00016438,2]
[327343212,1715999441502,-505.9033601,0.00016438,2]
[327343214,1715999441511,-502.40465758,0.00016438,2]
[327343216,1715999441521,-502.32976113,0.00016438,2]
[327343218,1715999441530,-379.79887098,0.00016438,2]
[327343220,1715999441539,-506.6435255,0.00016438,2]
[327343222,1715999441549,-500.0,0.00016438,2]
[327343224,1715999441559,-506.3034766,0.00016438,2]
[327343226,1715999441568,-500.0,0.00016438,2]
[327343228,1715999441578,-506.46880664,0.00016438,2]
[327343230,1715999441588,-504.35878576,0.00016438,2]
[327343232,1715999441597,-507.28998199,0.00016438,2]
[327343234,1715999441606,-505.81572376,0.00016438,2]
[327343235,1715999441616,-508.36847,0.00016438,2]
[327343237,1715999441625,-505.27625253,0.00016438,2]
[327343240,1715999441635,-505.70912941,0.00016438,2]
[327343242,1715999441644,-506.01467331,0.00016438,2]
[327343244,1715999441654,-504.53049449,0.00016438,2]
[327343246,1715999441664,-500.0,0.00016438,2]
[327343248,1715999441674,-504.62699176,0.00016438,2]
[327343250,1715999441684,-502.1350664,0.00016438,2]
[327343252,1715999441694,-504.71041131,0.00016438,2]
[327343254,1715999441703,-504.30416154,0.00016438,2]
[327343256,1715999441713,-501.953761,0.00016438,2]
[327343258,1715999441722,-506.42159147,0.00016438,2]
[327343260,1715999441731,-500.0,0.00016438,2]
[327343262,1715999441741,-514.57669617,0.00016438,2]
[327343264,1715999441750,-500.0,0.00016438,2]
[327343266,1715999441760,-501.39803878,0.00016438,2]